bitfinex/quotes_SOLUSD_20250818
["timestamp","ask_amount","ask_price","bid_price","bid_amount"]
[1755545499800,73.10520951,183.9,183.89,0.03]
[1755545501335,67.41066355,183.9,183.89,0.03]
[1755545501533,72.38520951,183.9,183.89,0.03]
[1755545504101,46.14671008,183.9,183.89,0.75]
[1755545505327,51.84125604,183.9,183.89,0.03]
[1755545505731,46.14671008,183.9,183.89,0.75]
[1755545506117,26.0,183.91,183.89,6.44454596]
[1755545506118,38.48,183.91,183.89,6.44454596]
[1755545506312,5.75454596,183.94,183.89,5.72454596]
[1755545506519,42.51946426,183.93,183.9,0.72]
[1755545506733,7.67499645,183.92,183.9,0.72]
[1755545506933,3.63553219,183.92,183.9,0.72]
[1755545507247,38.48,183.93,183.9,0.72]
[1755545507841,38.48,183.93,183.91,0.72]
[1755545508538,38.48,183.93,183.89,11.16236445]
[1755545508834,38.48,183.93,183.92,0.72]
[1755545509403,38.48,183.93,183.9,0.72]
[1755545509824,38.48,183.93,183.89,0.03]
[1755545509825,5.69454596,183.91,183.89,0.03]
[1755545510031,5.69454596,183.9,183.89,0.03]
[1755545511321,38.48,183.91,183.89,0.75]
[1755545511623,44.17454596,183.91,183.89,0.75]
[1755545513364,38.48,183.91,183.89,0.75]
[1755545514069,44.17454596,183.91,183.89,0.75]
[1755545514737,44.17454596,183.91,183.89,0.03]
[1755545515043,5.69454596,183.9,183.89,0.03]
[1755545515862,38.48,183.91,183.89,0.75]
[1755545516561,38.48,183.91,183.9,0.72]
[1755545516746,42.11781583,183.91,183.9,0.72]
[1755545516943,5.75454596,183.94,183.9,0.72]
[1755545517155,3.69786664,183.94,183.91,5.69454596]
[1755545517356,0.06,183.94,183.91,27.59454596]
[1755545517545,3.69786664,183.94,183.92,0.72]
[1755545517748,3.69786664,183.94,183.93,0.72]
[1755545517957,7.74051981,183.94,183.93,0.72]
[1755545518284,7.74054275,183.94,183.93,0.72]
[1755545518646,7.74255286,183.94,183.93,0.72]
[1755545519350,7.74255286,183.94,183.93,6.15685097]
[1755545519866,7.74255286,183.94,183.93,0.72]
[1755545520169,7.74255286,183.94,183.91,27.3373594]
[1755545520470,3.69786664,183.94,183.93,0.72]
[1755545520672,7.74427332,183.94,183.93,0.72]
[1755545521349,13.43881928,183.94,183.93,6.15685097]
[1755545523048,13.43895696,183.94,183.93,6.15685097]
[1755545526059,9.3924126,183.94,183.93,6.15685097]
[1755545526257,13.43805813,183.94,183.93,6.15685097]
[1755545528184,0.06,183.94,183.93,6.15685097]
[1755545528357,0.06,183.94,183.93,33.75139693]
[1755545528977,0.06,183.94,183.93,28.05685097]
[1755545530792,5.75454596,183.94,183.93,27.33685097]
[1755545530994,0.06,183.94,183.93,27.33685097]
[1755545531374,0.06,183.94,183.93,28.00685097]
[1755545533353,0.06,183.94,183.93,27.33685097]
[1755545534683,6.43454596,183.94,183.93,21.9]
[1755545537685,5.75454596,183.94,183.93,21.9]
[1755545538004,9.39097352,183.94,183.93,21.9]
[1755545538175,9.39097352,183.94,183.91,27.33715141]
[1755545538176,13.43204472,183.94,183.91,27.33715141]
[1755545538378,5.69454596,183.93,183.91,22.57]
[1755545543598,5.69454596,183.92,183.91,21.9]
[1755545546982,5.69454596,183.92,183.9,0.03]
[1755545547199,13.36987776,183.91,183.9,0.03]
[1755545547709,19.48731998,183.91,183.9,0.03]
[1755545549886,13.36987776,183.91,183.9,0.03]
[1755545550088,14.04987776,183.91,183.9,0.03]
[1755545550283,15.85089242,183.91,183.9,0.03]
[1755545550510,19.48639793,183.91,183.9,0.03]
[1755545551216,13.79185197,183.91,183.9,0.03]
[1755545551393,19.48639793,183.91,183.9,0.03]
[1755545552931,19.48639793,183.91,183.89,0.03]
[1755545552932,15.10621557,183.9,183.89,0.03]
[1755545553211,46.80076153,183.88,183.87,0.03]
[1755545553409,73.75005147,183.88,183.87,0.03]
[1755545553592,77.78317994,183.88,183.87,0.03]
[1755545554207,77.78337842,183.88,183.87,0.03]
[1755545554411,77.78337842,183.88,183.87,0.7]
[1755545554909,77.78337842,183.88,183.87,0.03]
[1755545555898,51.78337842,183.88,183.87,0.7]
[1755545556613,42.05550551,183.88,183.87,0.7]
[1755545557518,5.69454596,183.9,183.87,6.13862511]
[1755545557827,36.65595196,183.93,183.88,0.72]
[1755545557828,9.32140937,183.92,183.88,0.72]
[1755545558126,3.62686341,183.91,183.88,0.72]
[1755545559920,3.62686341,183.91,183.89,5.4380336]
[1755545560097,3.62686341,183.91,183.9,0.72]
[1755545561422,9.32140937,183.91,183.9,0.72]
[1755545561595,5.69454596,183.91,183.9,0.72]
[1755545561797,9.32140937,183.91,183.89,5.4380336]
[1755545562100,5.69454596,183.91,183.89,6.1580336]
[1755545562298,5.69454596,183.91,183.88,5.43832934]
[1755545562598,9.32140937,183.91,183.9,0.72]
[1755545562793,9.32140937,183.92,183.9,0.72]
[1755545563025,9.32140937,183.92,183.91,0.72]
[1755545563196,3.62686341,183.92,183.91,0.72]
[1755545563396,5.75454596,183.94,183.91,0.72]
[1755545563622,9.38218904,183.94,183.91,0.72]
[1755545563795,9.38218904,183.94,183.92,0.72]
[1755545564697,5.69454596,183.93,183.9,0.72]
[1755545565003,5.69454596,183.93,183.91,0.72]
[1755545566202,5.69454596,183.92,183.9,5.43746306]
[1755545566496,5.69454596,183.91,183.89,22.62]
[1755545566934,5.69454596,183.91,183.89,21.9]
[1755545567826,5.69454596,183.9,183.89,21.9]
[1755545568795,5.69454596,183.9,183.87,28.08853464]
[1755545569739,5.69454596,183.88,183.87,0.03]
[1755545570330,10.00139015,183.88,183.87,0.03]
[1755545570510,9.32139015,183.88,183.87,0.75]
[1755545570707,9.32139015,183.88,183.87,0.03]
[1755545570925,9.32139015,183.88,183.87,0.75]
[1755545571225,9.32139015,183.88,183.87,0.03]
[1755545571725,10.00139015,183.88,183.87,0.03]
[1755545572137,4.30684419,183.88,183.87,0.03]
[1755545572446,10.00139015,183.88,183.87,0.03]
[1755545573531,15.43971949,183.88,183.87,0.03]
[1755545573921,19.47061502,183.88,183.87,0.03]
[1755545574309,15.43971949,183.88,183.87,0.03]
[1755545574633,19.47105946,183.88,183.87,0.03]
[1755545575739,14.03273012,183.88,183.87,0.03]
[1755545575920,13.35273012,183.88,183.87,0.03]
[1755545576107,9.32139015,183.88,183.87,0.75]
[1755545579738,9.32139015,183.88,183.87,0.03]
[1755545580644,9.32139015,183.88,183.87,0.75]
[1755545581739,44.11454596,183.89,183.87,0.75]
[1755545582125,44.11454596,183.89,183.87,0.03]
[1755545582330,44.11454596,183.89,183.88,0.72]
[1755545582625,47.7476508,183.89,183.88,0.72]
[1755545583226,47.7476508,183.89,183.87,0.03]
[1755545583548,5.69454596,183.88,183.87,0.03]
[1755545584240,9.32785166,183.88,183.87,0.03]
[1755545585839,9.32785166,183.88,183.87,0.75]
[1755545586228,9.32785166,183.88,183.87,0.03]
[1755545587235,9.32785166,183.88,183.87,0.75]
[1755545588974,3.6333057,183.88,183.87,6.18862511]
[1755545589138,3.6333057,183.92,183.87,33.78317107]
[1755545589464,9.32785166,183.91,183.88,0.67]
[1755545589667,3.6333057,183.9,183.87,27.36862511]
[1755545589876,5.69454596,183.9,183.87,28.03862511]
[1755545590171,5.69454596,183.9,183.88,0.67]
[1755545590470,5.69454596,183.9,183.87,27.36862511]
[1755545590670,5.69454596,183.89,183.87,27.36862511]
[1755545590975,9.33069423,183.88,183.87,21.93]
[1755545591143,5.69454596,183.88,183.87,21.93]
[1755545591346,9.33069423,183.88,183.87,21.93]
[1755545591955,9.99069423,183.88,183.87,21.93]
[1755545592451,9.99069423,183.88,183.87,0.03]
[1755545592982,19.47146547,183.88,183.87,0.03]
[1755545598570,15.42902357,183.88,183.87,0.03]
[1755545598774,19.47242098,183.88,183.87,0.03]
[1755545598978,23.92521498,183.88,183.87,0.03]
[1755545599490,19.47242098,183.88,183.87,0.03]
[1755545599662,45.47242098,183.88,183.87,0.03]
[1755545600454,45.53242098,183.88,183.87,0.03]
[1755545600682,15.10621557,183.87,183.86,0.03]
[1755545600899,72.08797728,183.87,183.85,0.03]
[1755545601060,8.33954568,183.86,183.85,0.03]
[1755545601468,14.03409164,183.86,183.85,0.03]
[1755545603170,19.47301255,183.86,183.85,0.03]
[1755545605361,18.81301255,183.86,183.85,0.03]
[1755545605560,13.37409164,183.86,183.85,0.7]
[1755545605763,51.77409164,183.86,183.85,0.7]
[1755545606497,57.87301255,183.86,183.85,0.03]
[1755545607896,57.20686872,183.86,183.85,0.03]
[1755545608105,51.76794781,183.86,183.85,0.03]
[1755545608271,51.76794781,183.86,183.85,0.7]
[1755545608597,51.76901481,183.86,183.85,0.7]
[1755545608801,42.03614827,183.86,183.85,0.7]
[1755545608989,47.73069423,183.86,183.85,0.7]
[1755545609981,3.63614827,183.86,183.85,0.7]
[1755545610184,5.75454596,183.88,183.85,0.7]
[1755545610185,44.13454596,183.88,183.85,0.7]
[1755545610812,44.13454596,183.88,183.85,6.13921675]
[1755545610984,44.13454596,183.88,183.85,5.46921675]
[1755545611186,44.13454596,183.88,183.86,0.67]
[1755545611381,0.06,183.88,183.86,6.10885012]
[1755545611603,0.06,183.88,183.87,0.67]
[1755545612001,5.75454596,183.88,183.87,0.67]
[1755545612188,0.06,183.88,183.87,0.67]
[1755545612390,0.06,183.88,183.87,6.10862511]
[1755545615287,0.06,183.88,183.85,5.46921675]
[1755545615488,5.69454596,183.86,183.85,0.03]
[1755545615689,14.04018866,183.86,183.85,0.03]
[1755545615882,14.04018866,183.86,183.84,0.03]
[1755545616082,52.42018866,183.85,183.83,0.03]
[1755545616298,13.38018866,183.84,183.83,0.03]
[1755545616509,14.04018866,183.84,183.83,0.03]
[1755545616916,14.03838756,183.84,183.83,0.03]
[1755545617621,19.47790017,183.84,183.83,0.03]
[1755545618208,24.02557024,183.84,183.81,0.03]
[1755545618406,52.44838756,183.83,183.81,0.03]
[1755545619626,57.88819607,183.83,183.81,0.03]
[1755545620045,46.0638416,183.83,183.81,0.03]
[1755545620192,51.75838756,183.83,183.81,0.03]
[1755545621091,57.19819607,183.83,183.81,0.03]
[1755545621306,57.88819607,183.83,183.81,0.03]
[1755545621702,57.19819607,183.83,183.81,0.03]
[1755545625724,51.75838756,183.83,183.81,0.03]
[1755545625933,9.33594648,183.83,183.82,0.88]
[1755545626133,5.69454596,183.83,183.82,0.88]
[1755545626335,3.64140052,183.86,183.82,6.32006559]
[1755545626513,44.07454596,183.85,183.83,0.68]
[1755545626826,5.69454596,183.85,183.83,0.68]
[1755545627129,5.69454596,183.85,183.82,5.64006559]
[1755545627334,5.69454596,183.83,183.82,0.88]
[1755545629623,44.07454596,183.83,183.82,0.88]
[1755545631910,44.07454596,183.83,183.82,0.2]
[1755545632116,53.84014196,183.83,183.82,0.2]
[1755545632425,57.87898757,183.83,183.82,0.2]
[1755545633906,57.93898757,183.83,183.82,0.2]
[1755545634722,57.24898757,183.83,183.82,0.2]
[1755545634928,57.93898757,183.83,183.82,0.2]
[1755545635244,57.94049931,183.83,183.82,0.2]
[1755545641323,57.25049931,183.83,183.82,0.2]
[1755545641831,57.94049931,183.83,183.82,0.2]
[1755545642223,57.25049931,183.83,183.82,0.2]
[1755545643124,68.31635753,183.83,183.82,0.2]
[1755545643438,72.35751154,183.83,183.82,0.2]
[1755545643650,73.04751154,183.83,183.82,0.2]
[1755545646050,72.35751154,183.83,183.82,0.2]
[1755545646221,73.04751154,183.83,183.82,0.2]
[1755545647030,72.35751154,183.83,183.82,0.2]
[1755545648246,73.07751154,183.83,183.82,0.2]
[1755545650150,57.25129597,183.83,183.82,0.2]
[1755545652326,57.24894895,183.83,183.82,0.2]
[1755545652539,72.35516452,183.83,183.82,0.2]
[1755545652854,93.38061856,183.83,183.82,0.2]
[1755545653154,83.24894895,183.83,183.82,0.85]
[1755545653647,83.24894895,183.83,183.82,0.2]
[1755545654847,83.96894895,183.83,183.82,0.2]
[1755545655432,79.93014196,183.83,183.82,0.2]
[1755545655755,83.97139857,183.83,183.82,0.2]
[1755545658164,73.07761414,183.83,183.82,0.2]
[1755545658333,83.31983017,183.83,183.81,0.03]
[1755545658532,19.06727854,183.82,183.81,0.03]
[1755545658743,19.78727854,183.82,183.81,0.03]
[1755545659644,14.09273258,183.82,183.81,0.03]
[1755545660242,24.0805071,183.82,183.81,0.03]
[1755545660826,23.3605071,183.82,183.81,0.03]
[1755545661553,23.3646103,183.82,183.81,0.03]
[1755545663947,56.30450585,183.82,183.81,0.68]
[1755545665162,51.75683578,183.82,183.81,0.68]
[1755545665757,18.81694023,183.82,183.81,0.68]
[1755545665963,57.17694023,183.82,183.81,0.68]
[1755545666161,57.89694023,183.82,183.81,0.03]
[1755545666667,62.4446103,183.82,183.81,0.03]
[1755545667038,61.7246103,183.82,183.81,0.03]
[1755545667340,57.17694023,183.82,183.81,0.03]
[1755545667550,57.17694023,183.82,183.81,0.68]
[1755545667751,18.81694023,183.82,183.81,0.68]
[1755545668060,57.17694023,183.82,183.81,0.68]
[1755545668562,51.48239427,183.82,183.81,0.68]
[1755545668758,13.37683578,183.82,183.81,0.68]
[1755545668970,51.73683578,183.82,183.81,0.68]
[1755545670642,51.73652746,183.82,183.81,0.68]
[1755545671470,47.69033345,183.82,183.81,0.68]
[1755545671671,51.73704605,183.82,183.81,0.68]
[1755545673279,56.28471612,183.82,183.81,0.68]
[1755545674935,51.73704605,183.82,183.81,0.68]
[1755545675136,56.28471612,183.82,183.81,0.68]
[1755545675366,61.72482057,183.82,183.81,0.68]
[1755545675539,62.44482057,183.82,183.81,0.03]
[1755545677240,57.8971505,183.82,183.8,0.03]
[1755545677440,17.94116963,183.81,183.8,0.03]
[1755545678071,17.94116963,183.81,183.8,0.69]
[1755545678580,23.38157004,183.81,183.8,0.03]
[1755545679864,23.39242911,183.81,183.8,0.03]
[1755545680641,23.39248101,183.81,183.8,0.03]
[1755545683664,24.10248101,183.81,183.8,0.03]
[1755545684067,19.53835743,183.81,183.8,0.03]
[1755545684269,19.53835743,183.81,183.79,0.03]
[1755545684270,66.33911896,183.81,183.79,0.03]
[1755545684501,67.56417259,183.8,183.79,0.03]
[1755545684780,73.63763198,183.8,183.79,0.03]
[1755545685569,52.12687045,183.8,183.79,0.03]
[1755545685787,63.26211281,183.8,183.79,0.03]
[1755545685973,57.18865342,183.8,183.79,0.03]
[1755545686853,62.45910157,183.8,183.79,0.03]
[1755545687081,57.89865342,183.8,183.79,0.03]
[1755545687271,57.89488944,183.8,183.79,0.03]
[1755545688864,57.8950438,183.8,183.79,0.03]
[1755545689787,57.89534302,183.8,183.79,0.03]
[1755545689964,57.18534302,183.8,183.79,0.03]
[1755545692189,57.18534302,183.8,183.78,0.03]
[1755545692485,18.65462327,183.79,183.78,0.03]
[1755545693577,24.09429657,183.79,183.78,0.03]
[1755545695090,24.09395287,183.79,183.78,0.03]
[1755545697089,23.38395287,183.79,183.78,0.03]
[1755545697394,24.09395287,183.79,183.78,0.03]
[1755545697892,20.04130253,183.79,183.78,0.03]
[1755545698096,24.09312012,183.79,183.78,0.03]
[1755545698973,23.38312012,183.79,183.78,0.03]
[1755545699994,18.82314347,183.79,183.78,0.03]
[1755545700489,16.78260408,183.79,183.78,0.03]
[1755545701588,17.49260408,183.79,183.78,0.03]
[1755545703083,58.6000625,183.79,183.78,0.03]
[1755545703493,44.76022214,183.78,183.76,0.03]
[1755545703794,15.10621557,183.76,183.7,0.66]
[1755545703981,3.65400657,183.71,183.7,0.66]
[1755545704170,49.6828545,183.71,183.7,0.66]
[1755545704364,51.74159885,183.71,183.7,0.66]
[1755545706209,47.68853841,183.71,183.7,0.66]
[1755545707611,53.13190023,183.71,183.7,0.66]
[1755545707788,83.84597004,183.71,183.66,0.71]
[1755545708105,5.71275092,183.67,183.66,0.71]
[1755545708280,44.05275092,183.67,183.64,0.03]
[1755545708479,5.71275092,183.65,183.64,0.74]
[1755545708675,44.05275092,183.65,183.64,0.74]
[1755545709285,44.05275092,183.65,183.64,0.03]
[1755545709880,44.05275092,183.65,183.64,0.74]
[1755545710679,5.71275092,183.67,183.64,0.74]
[1755545710908,5.71275092,183.65,183.64,0.03]
[1755545711108,5.71275092,183.65,183.64,0.74]
[1755545711705,5.71275092,183.65,183.64,0.03]
[1755545712600,38.34,183.66,183.64,0.74]
[1755545712788,5.71275092,183.65,183.64,0.74]
[1755545713908,5.71275092,183.65,183.64,0.03]
[1755545715717,5.71275092,183.65,183.64,0.74]
[1755545716512,5.71275092,183.65,183.64,0.03]
[1755545716996,38.34,183.66,183.64,0.74]
[1755545717204,5.71275092,183.65,183.64,0.74]
[1755545717800,31.71275092,183.65,183.64,0.03]
[1755545717999,32.38275092,183.65,183.64,0.03]
[1755545718502,37.82789113,183.65,183.64,0.03]
[1755545719913,26.0,183.65,183.64,0.03]
[1755545720117,31.71275092,183.65,183.64,0.74]
[1755545720312,70.07275092,183.65,183.64,0.03]
[1755545720614,31.71275092,183.65,183.64,0.03]
[1755545720910,70.07275092,183.65,183.64,0.74]
[1755545721300,44.74275092,183.65,183.64,0.03]
[1755545721615,50.18789113,183.65,183.64,0.03]
[1755545722193,49.51789113,183.65,183.64,0.03]
[1755545724703,44.07275092,183.65,183.64,0.03]
[1755545725008,44.07275092,183.65,183.64,0.74]
[1755545725518,44.07275092,183.65,183.64,0.03]
[1755545726235,13.61012507,183.69,183.64,0.03]
[1755545726236,15.10621557,183.7,183.64,0.74]
[1755545726534,38.36,183.69,183.65,5.71275092]
[1755545726835,5.71275092,183.68,183.66,0.71]
[1755545726996,44.07275092,183.67,183.66,0.71]
[1755545727544,38.36,183.67,183.66,0.71]
[1755545728326,44.07275092,183.67,183.64,0.74]
[1755545728523,38.36,183.67,183.65,0.71]
[1755545730113,38.36,183.67,183.65,6.15490642]
[1755545730294,38.36,183.67,183.66,0.71]
[1755545731727,38.36,183.67,183.64,5.772751]
[1755545731728,44.74275092,183.67,183.64,0.03]
[1755545731897,5.71275092,183.65,183.64,0.03]
[1755545732098,44.11275092,183.65,183.64,0.03]
[1755545732612,50.22789113,183.65,183.64,0.03]
[1755545733497,44.11275092,183.65,183.64,0.03]
[1755545733699,26.0,183.66,183.64,0.74]
[1755545733898,38.42,183.65,183.64,0.03]
[1755545734200,70.13275092,183.66,183.64,0.03]
[1755545734409,5.71275092,183.65,183.64,0.03]
[1755545734806,6.38275092,183.65,183.64,0.03]
[1755545735110,5.71275092,183.65,183.64,0.03]
[1755545736630,6.38275092,183.65,183.64,0.03]
[1755545737214,11.82789113,183.65,183.64,0.03]
[1755545738414,6.38275092,183.65,183.64,0.03]
[1755545738615,5.71275092,183.65,183.64,0.03]
[1755545741428,9.33807592,183.65,183.64,0.03]
[1755545741638,5.71275092,183.65,183.64,0.03]
[1755545742437,9.33916013,183.65,183.64,0.03]
[1755545742614,5.71275092,183.65,183.64,0.03]
[1755545743432,10.00939597,183.65,183.64,0.03]
[1755545744142,9.33939597,183.65,183.64,0.03]
[1755545744917,15.45453618,183.65,183.64,0.03]
[1755545745137,19.48583226,183.65,183.64,0.03]
[1755545745924,13.77308134,183.65,183.64,0.03]
[1755545746113,9.33939597,183.65,183.64,0.03]
[1755545746818,13.37236808,183.65,183.64,0.03]
[1755545747039,19.48750829,183.65,183.64,0.03]
[1755545747633,18.81906246,183.65,183.64,0.03]
[1755545748248,13.37392225,183.65,183.64,0.03]
[1755545750840,18.81906246,183.65,183.64,0.03]
[1755545751034,19.48906246,183.65,183.64,0.03]
[1755545751724,19.49354381,183.65,183.64,0.03]
[1755545753033,22.33429699,183.65,183.64,0.03]
[1755545755776,22.33682591,183.65,183.64,0.03]
[1755545756847,19.49607273,183.65,183.64,0.03]
[1755545758150,19.50667503,183.65,183.64,0.03]
[1755545759155,13.12392411,183.65,183.64,0.03]
[1755545759455,7.6787839,183.65,183.64,6.41275092]
[1755545759749,38.58,183.67,183.64,6.41275092]
[1755545759941,4.54655918,183.72,183.64,6.41275092]
[1755545760145,46.50083004,183.71,183.65,6.38275092]
[1755545760346,13.39358096,183.7,183.65,5.71275092]
[1755545760541,42.45833991,183.69,183.66,0.67]
[1755545760727,7.68122615,183.68,183.66,0.67]
[1755545760923,38.82,183.69,183.66,0.67]
[1755545761151,7.68159619,183.68,183.66,6.1146489]
[1755545761334,3.63867301,183.67,183.66,5.4446489]
[1755545761941,3.63867301,183.67,183.66,6.1146489]
[1755545763949,3.63867301,183.67,183.66,0.67]
[1755545764231,52.19421502,183.67,183.64,0.7]
[1755545764440,5.71275092,183.65,183.64,0.7]
[1755545765253,9.35073634,183.65,183.64,0.7]
[1755545766653,3.63798542,183.66,183.64,6.14543672]
[1755545766850,38.8,183.67,183.65,0.67]
[1755545767544,30.54655918,183.73,183.66,5.71275092]
[1755545767759,5.71275092,183.71,183.66,5.71275092]
[1755545767957,7.68179136,183.7,183.68,5.44425087]
[1755545768168,44.51275092,183.72,183.69,0.69]
[1755545768338,7.68049372,183.71,183.69,0.69]
[1755545768532,3.63840234,183.7,183.69,0.69]
[1755545768844,14.05310753,183.7,183.66,28.03459356]
[1755545769143,13.39290626,183.69,183.67,0.69]
[1755545769335,5.71275092,183.69,183.67,0.69]
[1755545769533,0.66,183.7,183.67,0.69]
[1755545769735,9.34817497,183.69,183.67,0.69]
[1755545769950,5.71275092,183.69,183.67,0.69]
[1755545770542,9.34685829,183.69,183.67,0.69]
[1755545770766,5.71275092,183.69,183.67,0.69]
[1755545770950,9.34685829,183.69,183.67,0.69]
[1755545771144,5.71275092,183.69,183.67,0.69]
[1755545771343,9.34685829,183.69,183.67,0.69]
[1755545771543,44.51275092,183.69,183.67,0.69]
[1755545772256,44.51275092,183.69,183.68,0.69]
[1755545772557,38.78,183.71,183.68,0.69]
[1755545773057,26.06,183.75,183.69,5.71275092]
[1755545773368,5.71275092,183.72,183.7,0.69]
[1755545773569,9.3453063,183.73,183.7,0.69]
[1755545774255,9.3453063,183.73,183.71,5.44336182]
[1755545774458,9.3453063,183.73,183.71,6.13336182]
[1755545775448,44.49275092,183.74,183.72,0.69]
[1755545776153,44.49275092,183.74,183.73,0.69]
[1755545776374,44.49275092,183.74,183.73,6.13276928]
[1755545776936,44.49275092,183.74,183.73,5.44276928]
[1755545777450,0.06,183.75,183.72,11.15581645]
[1755545777647,0.06,183.75,183.74,5.71275092]
[1755545778044,0.06,183.75,183.74,6.40275092]
[1755545778241,0.06,183.75,183.74,0.69]
[1755545778546,0.06,183.75,183.74,6.40275092]
[1755545780240,0.06,183.75,183.74,11.84522397]
[1755545782665,0.06,183.77,183.74,11.84522397]
[1755545782849,0.06,183.77,183.76,5.71275092]
[1755545783252,0.06,183.77,183.76,11.84463163]
[1755545787853,0.06,183.77,183.76,33.74463163]
[1755545788046,0.06,183.79,183.76,26.9508472]
[1755545788258,0.06,183.79,183.78,5.71275092]
[1755545788471,0.06,183.8,183.78,5.71275092]
[1755545788659,0.06,183.8,183.79,5.71275092]
[1755545788969,0.06,183.8,183.79,6.40275092]
[1755545790051,0.06,183.8,183.79,37.84374335]
[1755545793665,0.06,183.8,183.79,59.74374335]
[1755545793859,1e-08,183.81,183.79,74.84995892]
[1755545794065,1e-08,183.82,183.8,60.79303613]
[1755545794276,1e-08,183.83,183.81,31.71275092]
[1755545794467,1e-08,183.83,183.82,5.71275092]
[1755545794675,1e-08,183.83,183.82,6.40275092]
[1755545795487,1e-08,183.83,183.82,6.94676136]
[1755545795858,1e-08,183.83,183.82,11.84285537]
[1755545796055,1e-08,183.83,183.82,11.15285537]
[1755545797295,0.66000001,183.83,183.82,5.44010445]
[1755545797784,1e-08,183.83,183.82,5.44010445]
[1755545798688,0.71000001,183.83,183.82,5.44010445]
[1755545799566,0.71000001,183.83,183.82,27.34010445]
[1755545800696,1e-08,183.83,183.82,27.34010445]
[1755545801979,1e-08,183.83,183.82,33.05285537]
[1755545802294,1e-08,183.83,183.82,88.06308138]
[1755545803193,0.06,183.85,183.84,26.0]
[1755545803390,0.06,183.85,183.84,92.83670218]
[1755545803573,0.06,183.85,183.84,93.51670218]
[1755545804489,0.06,183.85,183.84,114.06243036]
[1755545804795,0.06,183.85,183.84,113.5184791]
[1755545806395,0.06,183.86,183.84,113.5184791]
[1755545806595,0.06,183.86,183.85,5.71275092]
[1755545806789,0.06,183.86,183.85,6.39275092]
[1755545806988,0.06,183.87,183.86,15.10621557]
[1755545807189,0.06,183.87,183.86,82.05896649]
[1755545808893,0.06,183.87,183.86,87.4978874]
[1755545810101,1e-08,183.87,183.86,89.6773084]
[1755545810984,0.06,183.89,183.86,89.6773084]
[1755545810985,1e-08,183.88,183.86,89.6773084]
[1755545811183,1e-08,183.88,183.87,47.49896649]
[1755545811395,1e-08,183.88,183.87,21.49896649]
[1755545812196,1e-08,183.88,183.87,22.042829]
[1755545812505,1e-08,183.9,183.89,15.10621557]
[1755545812709,1e-08,183.92,183.91,41.10621557]
[1755545812876,1e-08,183.92,183.91,90.91640871]
[1755545813076,1e-08,183.92,183.91,91.59640871]
[1755545813692,0.06,183.95,183.93,26.0]
[1755545813896,0.06,183.95,183.93,70.37275092]
[1755545814106,0.06,183.95,183.93,65.34]
[1755545814283,0.06,183.95,183.93,71.05275092]
[1755545814690,0.06,183.95,183.93,70.37275092]
[1755545815307,0.06,183.95,183.93,75.80960189]
[1755545817325,0.06,183.95,183.93,97.70960189]
[1755545820225,0.77,183.94,183.93,53.33685097]
[1755545820389,6.48275092,183.94,183.93,21.9]
[1755545820709,0.77,183.94,183.93,65.93685097]
[1755545820884,0.06,183.94,183.93,65.93685097]
[1755545821087,0.77,183.94,183.93,65.93685097]
[1755545821893,0.06,183.94,183.93,65.93685097]
[1755545822316,0.06,183.94,183.93,71.64960189]
[1755545822511,0.06,183.94,183.93,72.32960189]
[1755545823110,0.06,183.94,183.93,87.43581746]
[1755545823688,0.06,183.94,183.93,92.15647746]
[1755545824239,0.06,183.95,183.94,41.10621557]
[1755545824390,0.06,183.95,183.94,74.15552188]
[1755545824591,1e-08,183.95,183.94,48.83552188]